[Event "13 Open de Quenza"]
[Site "Quenza, France"]
[Date "2024.07.07"]
[Round "7.9"]
[White "Anwesh, Upadhyaya"]
[Black "Have, Didier"]
[Result "1-0"]
[TimeControl "5min+3s/move"]
[WhiteElo "2363"]
[BlackElo "1935"]

1. d4 {[%clk 00:05:03]} {[%emt 00:00:01]} d5 {[%clk 00:05:03]} 2. Nf3 {[%clk
00:05:03]} {[%emt 00:00:02]} Nf6 {[%clk 00:05:03]} {[%emt 00:00:01]} 3. c4
{[%clk 00:05:03]} {[%emt 00:00:02]} dxc4 {[%clk 00:05:03]} {[%emt 00:00:02]} 4.
e3 {[%clk 00:05:03]} Bg4 {[%clk 00:05:03]} {[%emt 00:00:01]} 5. Bxc4 {[%clk
00:05:03]} {[%emt 00:00:03]} e6 {[%clk 00:05:03]} {[%emt 00:00:02]} 6. h3
{[%clk 00:04:55]} Bh5 {[%clk 00:05:03]} {[%emt 00:00:12]} 7. Nbd2 {[%clk
00:04:55]} {[%emt 00:00:02]} Nc6 {[%clk 00:05:02]} {[%emt 00:00:04]} 8. Qa4
{[%clk 00:04:47]} {[%emt 00:00:11]} Bb4 {[%clk 00:04:33]} {[%emt 00:00:33]} 9.
Ne5 {[%clk 00:04:33]} {[%emt 00:00:17]} O-O {[%clk 00:04:22]} {[%emt 00:00:14]}
10. Nxc6 {[%clk 00:04:33]} {[%emt 00:00:03]} Bxd2+ {[%clk 00:04:22]} 11. Bxd2
{[%clk 00:04:33]} {[%emt 00:00:01]} bxc6 {[%clk 00:04:22]} {[%emt 00:00:01]} 12.
Qxc6 {[%clk 00:04:20]} Rb8 {[%clk 00:04:12]} {[%emt 00:00:29]} 13. Bc3 {[%clk
00:04:07]} Rb6 {[%clk 00:03:49]} {[%emt 00:00:42]} 14. Qc5 {[%clk 00:03:59]}
{[%emt 00:00:13]} Bg6 15. O-O {[%emt 00:00:23]} Nd7 {[%clk 00:03:29]} {[%emt
00:00:04]} 16. Qa3 {[%clk 00:03:54]} Be4 {[%clk 00:02:51]} {[%emt 00:00:48]} 17.
f3 {[%clk 00:03:52]} {[%emt 00:00:05]} Bb7 {[%clk 00:02:29]} {[%emt 00:00:25]}
18. b3 {[%clk 00:03:28]} {[%emt 00:00:27]} Qg5 {[%clk 00:02:27]} {[%emt
00:00:05]} 19. Qc1 {[%clk 00:03:28]} {[%emt 00:00:03]} e5 {[%clk 00:02:20]}
{[%emt 00:00:10]} 20. e4 {[%clk 00:03:24]} {[%emt 00:00:07]} Qh4 {[%clk
00:02:18]} {[%emt 00:00:05]} 21. Qe1 {[%clk 00:03:15]} {[%emt 00:00:12]} Qg5
{[%clk 00:02:14]} {[%emt 00:00:07]} 22. Bd2 {[%clk 00:02:56]} {[%emt 00:00:23]}
Qh5 {[%clk 00:02:08]} {[%emt 00:00:09]} 23. d5 {[%clk 00:02:49]} {[%emt
00:00:10]} Rg6 {[%clk 00:02:05]} {[%emt 00:00:05]} 24. Kh2 {[%clk 00:02:47]}
{[%emt 00:00:05]} Nf6 {[%clk 00:01:27]} {[%emt 00:00:41]} 25. g4 {[%clk
00:02:31]} {[%emt 00:00:20]} Rxg4 {[%clk 00:01:17]} {[%emt 00:00:13]} 26. fxg4
{[%clk 00:02:30]} {[%emt 00:00:04]} Nxg4+ {[%clk 00:01:17]} {[%emt 00:00:01]}
27. Kg2 {[%clk 00:02:26]} {[%emt 00:00:07]} Nf6 {[%clk 00:00:55]} {[%emt
00:00:25]} 28. Rf5 {[%clk 00:02:08]} {[%emt 00:00:21]} Qg6+ {[%clk 00:00:45]}
{[%emt 00:00:14]} 29. Kh2 {[%clk 00:01:23]} {[%emt 00:00:48]} Rd8 {[%clk
00:00:22]} {[%emt 00:00:26]} 30. Qe2 {[%clk 00:00:48]} {[%emt 00:00:38]} Rd6
{[%clk 00:00:15]} {[%emt 00:00:10]} 31. Rg1 {[%clk 00:00:46]} {[%emt 00:00:05]}
1-0

[Event "13 Open de Quenza"]
[Site "Quenza, France"]
[Date "2024.07.07"]
[Round "7.10"]
[White "Cardi, Jean"]
[Black "Batsiashvili, Nino"]
[Result "0-1"]
[TimeControl "5min+3s/move"]
[WhiteElo "1922"]
[BlackElo "2451"]

1. e4 {[%clk 00:05:03]} {[%emt 00:00:01]} e5 {[%clk 00:05:03]} {[%emt
00:00:01]} 2. Nf3 {[%clk 00:05:03]} Nc6 {[%clk 00:05:03]} 3. d4 {[%clk
00:05:03]} {[%emt 00:00:05]} exd4 {[%clk 00:05:03]} {[%emt 00:00:02]} 4. Nxd4
{[%clk 00:05:03]} Nf6 {[%clk 00:05:03]} {[%emt 00:00:01]} 5. Nxc6 {[%clk
00:04:56]} {[%emt 00:00:10]} bxc6 {[%clk 00:05:03]} {[%emt 00:00:02]} 6. Qe2
{[%clk 00:04:56]} {[%emt 00:00:01]} Bc5 {[%clk 00:04:41]} {[%emt 00:00:26]} 7.
Be3 {[%clk 00:04:56]} {[%emt 00:00:02]} Bb6 {[%clk 00:04:37]} {[%emt 00:00:07]}
8. Nc3 {[%clk 00:04:50]} {[%emt 00:00:06]} O-O {[%clk 00:04:37]} {[%emt
00:00:05]} 9. O-O-O {[%clk 00:04:50]} {[%emt 00:00:02]} Re8 {[%clk 00:04:23]}
{[%emt 00:00:17]} 10. Bg5 {[%clk 00:04:41]} {[%emt 00:00:12]} h6 {[%clk
00:04:23]} {[%emt 00:00:02]} 11. Bh4 {[%clk 00:04:41]} Qe7 {[%clk 00:04:23]}
{[%emt 00:00:01]} 12. f3 {[%clk 00:04:37]} {[%emt 00:00:07]} Ba5 {[%clk
00:04:11]} {[%emt 00:00:15]} 13. Qd3 {[%clk 00:04:09]} {[%emt 00:00:30]} Rb8
{[%clk 00:04:09]} {[%emt 00:00:06]} 14. Ne2 {[%clk 00:03:34]} {[%emt 00:00:38]}
d5 {[%clk 00:03:44]} {[%emt 00:00:28]} 15. Nd4 {[%clk 00:02:26]} {[%emt
00:01:10]} dxe4 {[%clk 00:03:42]} {[%emt 00:00:06]} 16. fxe4 {[%clk 00:02:01]}
{[%emt 00:00:29]} Qe5 {[%clk 00:03:42]} {[%emt 00:00:01]} 17. Nb3 {[%clk
00:01:23]} {[%emt 00:00:41]} Nxe4 {[%clk 00:03:24]} {[%emt 00:00:21]} 18. Be1
{[%clk 00:00:40]} {[%emt 00:00:45]} Bxe1 {[%clk 00:03:10]} {[%emt 00:00:18]} 19.
Rxe1 {[%clk 00:00:40]} {[%emt 00:00:02]} Bf5 {[%clk 00:02:21]} {[%emt
00:00:52]} 20. Qd4 {[%clk 00:00:40]} {[%emt 00:00:01]} Qf4+ {[%clk 00:02:11]}
{[%emt 00:00:12]} 21. Qe3 {[%clk 00:00:36]} {[%emt 00:00:08]} Qxe3+ {[%clk
00:01:59]} {[%emt 00:00:15]} 22. Rxe3 {[%clk 00:00:36]} {[%emt 00:00:01]} Nf2
{[%clk 00:01:59]} 23. Rxe8+ {[%clk 00:00:33]} {[%emt 00:00:05]} Rxe8 {[%clk
00:01:59]} 24. Rg1 {[%clk 00:00:32]} {[%emt 00:00:04]} Re1+ {[%clk 00:01:59]}
{[%emt 00:00:01]} 25. Kd2 {[%clk 00:00:32]} Rb1 {[%clk 00:01:59]} {[%emt
00:00:01]} 26. Nd4 {[%clk 00:00:24]} {[%emt 00:00:12]} Bd7 {[%clk 00:01:38]}
{[%emt 00:00:23]} 27. h3 {[%clk 00:00:18]} {[%emt 00:00:09]} Ne4+ {[%clk
00:01:38]} {[%emt 00:00:01]} 28. Ke3 {[%clk 00:00:18]} {[%emt 00:00:02]} Nd6
{[%clk 00:01:16]} {[%emt 00:00:25]} 29. b3 {[%clk 00:00:18]} {[%emt 00:00:02]}
c5 {[%clk 00:01:16]} {[%emt 00:00:02]} 30. Nf3 {[%clk 00:00:18]} {[%emt
00:00:01]} Nf5+ {[%clk 00:01:15]} {[%emt 00:00:04]} 31. Kd2 {[%clk 00:00:18]}
{[%emt 00:00:01]} Nd4 {[%clk 00:01:15]} 32. c3 {[%clk 00:00:08]} {[%emt
00:00:14]} Nxf3+ {[%clk 00:01:15]} {[%emt 00:00:02]} 33. gxf3 {[%clk 00:00:08]}
{[%emt 00:00:01]} Bxh3 {[%clk 00:01:13]} {[%emt 00:00:06]} 0-1

[Event "13 Open de Quenza"]
[Site "Quenza, France"]
[Date "2024.07.07"]
[Round "7.11"]
[White "Geronimi, Jean-Thomas"]
[Black "Roux, Baptiste"]
[Result "1-0"]
[TimeControl "5min+3s/move"]
[WhiteElo "2065"]
[BlackElo "2352"]

1. e4 {[%clk 00:05:03]} c5 {[%clk 00:05:03]} {[%emt 00:00:02]} 2. Nf3 {[%clk
00:05:03]} e6 {[%clk 00:05:01]} {[%emt 00:00:05]} 3. d4 {[%clk 00:05:03]}
{[%emt 00:00:01]} cxd4 {[%clk 00:05:01]} {[%emt 00:00:01]} 4. Nxd4 {[%clk
00:05:03]} {[%emt 00:00:01]} Nf6 {[%clk 00:05:01]} 5. Nc3 {[%clk 00:05:03]}
{[%emt 00:00:01]} Nc6 {[%clk 00:05:01]} 6. Ndb5 {[%clk 00:04:56]} {[%emt
00:00:11]} Bc5 {[%clk 00:05:01]} {[%emt 00:00:02]} 7. Bf4 {[%clk 00:03:40]}
{[%emt 00:01:18]} O-O {[%clk 00:05:01]} {[%emt 00:00:02]} 8. Bd6 {[%clk
00:03:10]} {[%emt 00:00:34]} Qb6 {[%clk 00:05:01]} {[%emt 00:00:02]} 9. Bxc5
{[%clk 00:02:52]} {[%emt 00:00:20]} Qxc5 {[%clk 00:05:01]} {[%emt 00:00:01]} 10.
Qd6 {[%clk 00:02:40]} {[%emt 00:00:15]} Qb6 {[%clk 00:05:01]} {[%emt 00:00:01]}
11. Qc7 {[%clk 00:02:09]} {[%emt 00:00:34]} Qxc7 {[%clk 00:04:45]} {[%emt
00:00:20]} 12. Nxc7 {[%clk 00:02:09]} {[%emt 00:00:02]} Rb8 {[%clk 00:04:45]}
13. N7b5 {[%clk 00:01:31]} {[%emt 00:00:41]} d5 {[%clk 00:04:38]} {[%emt
00:00:10]} 14. exd5 {[%clk 00:01:14]} {[%emt 00:00:20]} exd5 {[%clk 00:04:28]}
{[%emt 00:00:13]} 15. O-O-O {[%clk 00:01:09]} {[%emt 00:00:07]} Be6 {[%clk
00:03:41]} {[%emt 00:00:51]} 16. Nd4 {[%clk 00:01:07]} {[%emt 00:00:05]} Ng4
{[%clk 00:03:29]} {[%emt 00:00:14]} 17. Nxc6 {[%clk 00:00:52]} {[%emt
00:00:18]} bxc6 {[%clk 00:03:29]} {[%emt 00:00:02]} 18. Rd2 {[%clk 00:00:52]}
{[%emt 00:00:02]} Rfd8 {[%clk 00:03:08]} {[%emt 00:00:24]} 19. h3 {[%clk
00:00:52]} {[%emt 00:00:03]} Nf6 {[%clk 00:03:08]} {[%emt 00:00:02]} 20. Bd3
{[%clk 00:00:52]} {[%emt 00:00:03]} c5 {[%clk 00:03:08]} {[%emt 00:00:02]} 21.
b3 {[%clk 00:00:35]} {[%emt 00:00:19]} g6 {[%clk 00:02:59]} {[%emt 00:00:12]}
22. g4 {[%clk 00:00:26]} {[%emt 00:00:13]} Rb4 {[%clk 00:02:49]} {[%emt
00:00:13]} 23. Ne2 {[%clk 00:00:11]} {[%emt 00:00:17]} Kf8 {[%clk 00:02:17]}
{[%emt 00:00:35]} 24. a3 {[%clk 00:00:11]} {[%emt 00:00:01]} Rb6 {[%clk
00:02:17]} {[%emt 00:00:02]} 25. Nf4 {[%clk 00:00:10]} {[%emt 00:00:05]} Rd7
{[%clk 00:01:54]} {[%emt 00:00:27]} 26. Re1 {[%clk 00:00:10]} g5 {[%clk
00:01:42]} {[%emt 00:00:15]} 27. Nxe6+ {[%clk 00:00:10]} {[%emt 00:00:03]} fxe6
{[%clk 00:01:42]} {[%emt 00:00:01]} 28. Re5 {[%clk 00:00:10]} {[%emt 00:00:01]}
h6 {[%clk 00:01:40]} {[%emt 00:00:05]} 29. Rde2 {[%clk 00:00:10]} Kf7 {[%clk
00:01:40]} 30. f3 {[%clk 00:00:09]} {[%emt 00:00:05]} a5 {[%clk 00:01:40]}
{[%emt 00:00:02]} 31. a4 {[%clk 00:00:09]} {[%emt 00:00:01]} Rb4 {[%clk
00:01:40]} 32. Bb5 {[%clk 00:00:09]} Rd6 {[%clk 00:01:40]} {[%emt 00:00:01]} 33.
R5e3 {[%clk 00:00:09]} {[%emt 00:00:03]} Rf4 {[%clk 00:01:39]} {[%emt
00:00:04]} 34. Bd3 {[%clk 00:00:07]} {[%emt 00:00:05]} Nd7 {[%clk 00:01:30]}
{[%emt 00:00:12]} 35. Bb5 {[%clk 00:00:07]} {[%emt 00:00:02]} Nf6 {[%clk
00:01:18]} {[%emt 00:00:14]} 36. h4 {[%clk 00:00:07]} gxh4 {[%clk 00:01:11]}
{[%emt 00:00:11]} 37. Rh2 {[%clk 00:00:07]} d4 {[%clk 00:01:11]} {[%emt
00:00:02]} 38. Rd3 {[%clk 00:00:07]} {[%emt 00:00:01]} e5 {[%clk 00:01:08]}
{[%emt 00:00:06]} 39. Rxh4 {[%clk 00:00:07]} h5 {[%clk 00:01:03]} {[%emt
00:00:08]} 40. Bc4+ {[%clk 00:00:07]} {[%emt 00:00:03]} Kg7 {[%clk 00:01:03]}
{[%emt 00:00:02]} 41. Rh2 {[%clk 00:00:06]} {[%emt 00:00:04]} hxg4 {[%clk
00:01:03]} {[%emt 00:00:03]} 42. fxg4 {[%clk 00:00:06]} {[%emt 00:00:01]} e4
{[%clk 00:01:03]} {[%emt 00:00:02]} 43. Rdh3 {[%clk 00:00:06]} {[%emt
00:00:01]} Rxg4 {[%clk 00:01:00]} {[%emt 00:00:07]} 44. Rh8 {[%clk 00:00:06]}
{[%emt 00:00:02]} e3 {[%clk 00:01:00]} {[%emt 00:00:01]} 45. Ra8 {[%clk
00:00:06]} {[%emt 00:00:01]} Kg6 {[%clk 00:00:55]} {[%emt 00:00:07]} 46. Bd3+
{[%clk 00:00:06]} Kg5 {[%clk 00:00:55]} {[%emt 00:00:03]} 47. Rxa5 {[%clk
00:00:06]} {[%emt 00:00:01]} Rd5 {[%clk 00:00:50]} {[%emt 00:00:08]} 48. Ra7
{[%emt 00:00:02]} Rd7 {[%clk 00:00:44]} {[%emt 00:00:09]} 49. Ra6 {[%clk
00:00:06]} {[%emt 00:00:02]} Nd5 {[%clk 00:00:22]} {[%emt 00:00:24]} 50. Rg6+
{[%emt 00:00:01]} Kf4 51. Rc6 {[%clk 00:00:06]} {[%emt 00:00:04]} Nc3 {[%clk
00:00:16]} {[%emt 00:00:09]} 52. Rf6+ {[%clk 00:00:06]} {[%emt 00:00:01]} Ke5
{[%clk 00:00:12]} {[%emt 00:00:08]} 53. Rf5+ {[%clk 00:00:06]} Ke6 {[%clk
00:00:12]} 54. Rh6+ {[%clk 00:00:06]} {[%emt 00:00:02]} Ke7 {[%clk 00:00:12]}
{[%emt 00:00:01]} 55. Re5+ {[%clk 00:00:06]} {[%emt 00:00:02]} Kf8 {[%clk
00:00:08]} {[%emt 00:00:07]} 56. Rh8+ {[%clk 00:00:06]} {[%emt 00:00:02]} Kf7
{[%clk 00:00:08]} {[%emt 00:00:03]} 57. Rh7+ {[%clk 00:00:06]} {[%emt
00:00:01]} Kf6 {[%clk 00:00:08]} 58. Rf5+ {[%clk 00:00:06]} Ke6 {[%clk
00:00:08]} 59. Rf1 {[%clk 00:00:06]} {[%emt 00:00:03]} Rxh7 {[%clk 00:00:08]}
{[%emt 00:00:02]} 60. Bxh7 {[%clk 00:00:06]} e2 {[%emt 00:00:02]} 61. Re1 Ke5
{[%clk 00:00:08]} {[%emt 00:00:03]} 62. Bd3 {[%clk 00:00:06]} Kf4 {[%clk
00:00:08]} {[%emt 00:00:02]} 63. Bxe2 {[%clk 00:00:06]} {[%emt 00:00:02]} Rg1
{[%clk 00:00:08]} {[%emt 00:00:02]} 64. Kd2 {[%clk 00:00:06]} {[%emt 00:00:02]}
Ne4+ {[%clk 00:00:08]} {[%emt 00:00:02]} 65. Kd1 {[%clk 00:00:06]} Rg2 {[%clk
00:00:08]} {[%emt 00:00:02]} 66. Bd3 {[%clk 00:00:06]} {[%emt 00:00:02]} Nf2+
{[%clk 00:00:06]} {[%emt 00:00:05]} 67. Kc1 {[%clk 00:00:06]} {[%emt 00:00:02]}
Rg3 {[%clk 00:00:06]} {[%emt 00:00:01]} 68. Rf1 {[%clk 00:00:06]} {[%emt
00:00:01]} Ke3 {[%clk 00:00:06]} 69. Re1+ {[%clk 00:00:06]} Kf4 {[%clk
00:00:06]} 70. Rf1 Rf3 {[%emt 00:00:02]} 71. Be2 {[%clk 00:00:06]} {[%emt
00:00:01]} d3 {[%clk 00:00:05]} {[%emt 00:00:03]} 72. Bxf3 {[%clk 00:00:06]}
Kxf3 {[%clk 00:00:05]} 73. cxd3 {[%clk 00:00:06]} Ke2 {[%clk 00:00:05]} {[%emt
00:00:01]} 74. Rxf2+ {[%clk 00:00:06]} {[%emt 00:00:01]} 1-0

[Event "13 Open de Quenza"]
[Site "Quenza, France"]
[Date "2024.07.07"]
[Round "7.12"]
[White "Crapulli, Giuseppe"]
[Black "Dourerassou, Jonathan"]
[Result "0-1"]
[TimeControl "5min+3s/move"]
[WhiteElo "1919"]
[BlackElo "2422"]

1. e4 {[%clk 00:05:03]} {[%emt 00:05:44]} c5 {[%clk 00:05:03]} {[%emt
00:00:01]} 2. Nf3 {[%clk 00:05:03]} e6 {[%clk 00:05:03]} {[%emt 00:00:02]} 3.
d4 {[%clk 00:05:03]} {[%emt 00:00:01]} cxd4 {[%clk 00:05:03]} {[%emt 00:00:01]}
4. Nxd4 {[%clk 00:05:03]} Nf6 {[%clk 00:05:03]} {[%emt 00:00:01]} 5. Nc3 {[%clk
00:05:03]} {[%emt 00:00:01]} Nc6 {[%clk 00:05:03]} 6. Ndb5 {[%clk 00:05:03]}
{[%emt 00:00:03]} d6 {[%clk 00:05:03]} {[%emt 00:00:02]} 7. Bf4 {[%clk
00:05:03]} {[%emt 00:00:01]} e5 {[%clk 00:05:03]} {[%emt 00:00:01]} 8. Bg5
{[%clk 00:05:03]} a6 {[%clk 00:05:03]} {[%emt 00:00:02]} 9. Na3 {[%clk
00:05:03]} {[%emt 00:00:04]} b5 {[%clk 00:05:03]} {[%emt 00:00:01]} 10. Bxf6
{[%clk 00:05:03]} {[%emt 00:00:03]} gxf6 {[%clk 00:05:02]} {[%emt 00:00:05]} 11.
Nd5 {[%clk 00:05:03]} {[%emt 00:00:03]} Bg7 {[%clk 00:05:02]} {[%emt 00:00:01]}
12. c4 {[%clk 00:05:02]} {[%emt 00:00:02]} b4 {[%clk 00:05:02]} {[%emt
00:00:02]} 13. Nc2 {[%clk 00:05:02]} {[%emt 00:00:01]} Rb8 {[%clk 00:05:02]}
{[%emt 00:00:01]} 14. b3 {[%clk 00:04:59]} {[%emt 00:00:06]} f5 {[%clk
00:05:02]} {[%emt 00:00:01]} 15. g3 {[%clk 00:04:59]} {[%emt 00:00:03]} fxe4
{[%clk 00:05:01]} {[%emt 00:00:04]} 16. Bg2 {[%clk 00:04:59]} Bf5 {[%clk
00:05:00]} {[%emt 00:00:05]} 17. Qe2 {[%clk 00:04:58]} {[%emt 00:00:05]} O-O
{[%clk 00:04:54]} {[%emt 00:00:08]} 18. Bxe4 {[%clk 00:04:58]} {[%emt
00:00:02]} Bxe4 {[%clk 00:04:50]} {[%emt 00:00:09]} 19. Qxe4 {[%clk 00:04:58]}
f5 {[%clk 00:04:50]} {[%emt 00:00:02]} 20. Qe2 {[%clk 00:04:58]} {[%emt
00:00:01]} f4 {[%clk 00:04:47]} {[%emt 00:00:05]} 21. O-O-O {[%clk 00:04:49]}
{[%emt 00:00:11]} f3 {[%clk 00:03:39]} {[%emt 00:01:11]} 22. Qe4 {[%clk
00:04:44]} {[%emt 00:00:08]} Qa5 {[%clk 00:03:26]} {[%emt 00:00:17]} 23. Kb1
{[%clk 00:04:34]} {[%emt 00:00:13]} Qc5 {[%clk 00:03:26]} {[%emt 00:00:01]} 24.
Qe3 {[%clk 00:04:32]} {[%emt 00:00:05]} Rbe8 {[%clk 00:03:17]} {[%emt
00:00:12]} 25. Qxc5 {[%clk 00:04:17]} {[%emt 00:00:18]} dxc5 {[%clk 00:03:17]}
{[%emt 00:00:01]} 26. Nc7 {[%clk 00:04:03]} {[%emt 00:00:18]} Rc8 {[%clk
00:03:07]} {[%emt 00:00:12]} 27. Nxa6 {[%clk 00:04:01]} {[%emt 00:00:05]} Nd4
{[%clk 00:03:07]} {[%emt 00:00:02]} 28. Ne3 {[%clk 00:03:33]} {[%emt 00:00:32]}
Rc6 {[%clk 00:03:07]} {[%emt 00:00:03]} 29. Nxc5 {[%clk 00:03:29]} {[%emt
00:00:07]} Rxc5 {[%clk 00:03:07]} {[%emt 00:00:02]} 30. Nd5 {[%clk 00:03:29]}
Ne2 {[%clk 00:03:03]} {[%emt 00:00:07]} 31. Ne7+ {[%clk 00:02:43]} {[%emt
00:00:49]} Kh8 {[%clk 00:03:03]} {[%emt 00:00:02]} 32. Rd7 {[%clk 00:02:43]}
{[%emt 00:00:01]} Ra5 {[%clk 00:02:57]} {[%emt 00:00:09]} 33. Nc6 {[%clk
00:02:24]} {[%emt 00:00:22]} Nc3+ {[%clk 00:02:57]} {[%emt 00:00:02]} 34. Kc1
{[%clk 00:02:22]} {[%emt 00:00:05]} Rxa2 {[%clk 00:02:56]} {[%emt 00:00:03]} 35.
Nxb4 {[%clk 00:02:22]} {[%emt 00:00:02]} Bh6+ {[%clk 00:02:55]} {[%emt
00:00:04]} 0-1